bitfinex/quotes_ETHUSD_20250721
["timestamp","ask_amount","ask_price","bid_price","bid_amount"]
[1753109968139,9.25562806,3840.8,3840.7,1e-08]
[1753109968781,3.94833104,3840.2,3840.1,0.02]
[1753109968982,8.10233104,3840.2,3840.1,0.02]
[1753109969895,8.10433104,3840.2,3840.1,0.02]
[1753109970210,7.55433104,3840.2,3840.1,0.02]
[1753109970409,2.12318155,3841.0,3840.1,0.4506]
[1753109970410,1.42312369,3841.0,3840.1,0.4506]
[1753109970570,2.60367682,3840.8,3840.1,0.4506]
[1753109970912,0.1296,3840.2,3840.1,3.05468474]
[1753109971125,0.1296,3840.4,3840.2,2.60397588]
[1753109971263,0.1296,3840.6,3840.3,0.4306]
[1753109971616,0.1296,3840.6,3840.5,5.60382762]
[1753109971904,0.1296,3840.6,3840.5,6.03442762]
[1753109972106,4.153,3840.8,3840.7,3.41139203]
[1753109972277,4.153,3840.9,3840.7,1.2383]
[1753109972604,4.153,3840.9,3840.8,0.4306]
[1753109972815,4.153,3840.9,3840.3,3.5602]
[1753109973110,0.1296,3840.6,3840.3,3.4306]
[1753109973622,4.151,3840.8,3840.4,3.03447943]
[1753109973776,4.151,3840.8,3840.4,2.60387943]
[1753109973977,4.151,3840.8,3840.5,3.03442358]
[1753109974303,0.1296,3840.9,3840.6,3.03430473]
[1753109974506,0.1296,3840.9,3840.7,0.4306]
[1753109974705,0.1296,3840.9,3840.7,1.1899]
[1753109974896,4.151,3841.2,3840.7,1.82964611]
[1753109975100,4.2806,3841.2,3840.7,3.36297421]
[1753109975281,0.1296,3841.2,3840.8,3.03420429]
[1753109975611,4.2806,3841.2,3840.9,0.4306]
[1753109975775,4.2806,3841.2,3840.7,3.36298206]
[1753109975976,4.2806,3841.2,3841.0,0.4306]
[1753109976218,4.2806,3841.2,3841.1,0.4306]
[1753109976791,6.88395311,3841.2,3841.1,0.4306]
[1753109976997,5.22931766,3841.2,3840.7,0.7593]
[1753109977316,0.1296,3840.8,3840.7,0.4306]
[1753109981573,2.73322424,3840.8,3840.7,0.4306]
[1753109981875,0.1296,3840.8,3840.7,0.4306]
[1753109982640,0.1296,3840.8,3840.4,0.001]
[1753109982842,0.1296,3840.8,3840.4,0.4316]
[1753109983036,2.60374216,3840.7,3840.5,0.4306]
[1753109983241,2.73323632,3840.8,3840.5,0.4306]
[1753109983542,2.60373543,3840.7,3840.5,0.4306]
[1753109983852,0.1296,3840.8,3840.4,0.001]
[1753109984075,0.1296,3840.8,3840.6,0.4306]
[1753109984585,2.60382762,3840.5,3840.4,0.001]
[1753109984805,6.75382762,3840.5,3840.4,0.001]
[1753109987076,0.8318,3840.9,3840.4,0.4434]
[1753109987376,4.15,3840.8,3840.5,0.4424]
[1753109987582,0.69880466,3841.9,3840.7,0.7923]
[1753109987734,0.56031795,3841.8,3841.7,3.39531429]
[1753109987940,0.56031795,3842.3,3841.7,1.2347]
[1753109988177,0.56031795,3842.2,3842.1,2.60274329]
[1753109988381,0.1296,3842.1,3842.0,2.60274424]
[1753109988534,0.56031795,3842.3,3842.0,0.59979881]
[1753109988737,0.56031795,3842.5,3841.8,0.1296]
[1753109988940,0.1316,3842.6,3842.5,3.39477234]
[1753109989263,0.002,3842.6,3842.5,3.83717234]
[1753109989496,0.002,3842.6,3842.5,7.49410543]
[1753109990578,0.002,3842.6,3842.5,6.83717234]
[1753109990734,0.002,3842.6,3842.4,0.1296]
[1753109990940,0.002,3842.6,3842.2,3.0]
[1753109991354,0.002,3842.6,3842.3,0.4424]
[1753109991559,0.002,3842.6,3842.3,3.04500483]
[1753109991860,0.002,3842.6,3842.4,0.4424]
[1753109992659,0.002,3842.6,3842.2,3.0]
[1753109992859,0.002,3842.6,3842.5,0.4424]
[1753109993062,2.60443835,3842.6,3842.1,0.7923]
[1753109993263,0.1296,3842.3,3841.8,0.4424]
[1753109993513,0.1296,3842.3,3841.9,0.4424]
[1753109993669,2.73225847,3842.3,3841.6,0.1296]
[1753109993871,0.1296,3842.0,3841.4,0.4424]
[1753109994304,2.60321757,3841.4,3841.3,0.1296]
[1753109994602,2.60328534,3841.3,3841.2,0.13813777]
[1753109995196,0.1296,3841.4,3841.2,0.13813777]
[1753109995860,2.73282578,3841.4,3841.2,0.13813777]
[1753109996062,0.1296,3841.4,3841.2,0.13813777]
[1753109996283,0.1296,3841.8,3841.3,0.4424]
[1753109996488,2.60302222,3841.7,3841.2,0.26773777]
[1753109996722,2.73255556,3841.8,3841.4,0.4424]
[1753109996910,2.60307372,3841.7,3841.4,0.4424]
[1753109997110,2.60278882,3842.1,3841.6,0.8114]
[1753109997429,0.1296,3841.8,3841.7,0.4424]
[1753109999189,0.1296,3841.8,3841.2,1.49683777]
[1753109999392,0.1296,3841.8,3841.2,4.49683777]
[1753109999830,0.1296,3841.8,3841.2,7.10018298]
[1753110000333,2.60310496,3841.6,3841.2,1.05443777]
[1753110000501,0.002,3841.9,3841.2,1.36723777]
[1753110000703,0.1296,3841.4,3841.2,0.13813777]
[1753110001214,0.1296,3841.4,3841.2,0.58053777]
[1753110001421,0.1296,3841.4,3841.3,0.4424]
[1753110001632,0.002,3841.9,3841.3,0.4424]
[1753110001837,0.1296,3841.8,3841.3,0.4424]
[1753110002028,2.60305869,3841.7,3841.3,0.4424]
[1753110002334,0.1296,3841.8,3841.4,0.4424]
[1753110002532,0.1296,3841.8,3841.4,2.60317413]
[1753110002738,0.1296,3841.8,3841.5,0.4424]
[1753110002922,0.1296,3841.8,3841.6,3.04544075]
[1753110003123,0.1296,3841.8,3841.7,0.4424]
[1753110003325,0.002,3841.9,3841.7,0.4424]
[1753110003638,0.002,3841.9,3841.8,0.4424]
[1753110004855,0.002,3841.9,3841.6,0.1296]
[1753110005156,0.1296,3841.7,3841.6,0.13324089]
[1753110005450,0.002,3841.9,3841.7,0.4424]
[1753110005814,0.002,3841.9,3841.8,0.4424]
[1753110006017,0.002,3841.9,3841.8,7.2375103]
[1753110006214,0.002,3841.9,3841.8,7.21148084]
[1753110007647,0.002,3841.9,3841.8,7.33417641]
[1753110010748,0.002,3841.9,3841.8,7.0007421]
[1753110011176,0.002,3841.9,3841.8,6.87804653]
[1753110012439,0.002,3841.9,3841.8,7.00073239]
[1753110013122,0.002,3841.9,3841.8,6.87804653]
[1753110013651,0.002,3841.9,3841.8,7.00023251]
[1753110013856,0.002,3841.9,3841.8,8.37515868]
[1753110014779,0.002,3841.9,3841.8,7.00023251]
[1753110014932,0.002,3841.9,3841.8,6.99791278]
[1753110015983,0.002,3841.9,3841.8,7.12751278]
[1753110016385,0.002,3842.6,3842.5,2.60247234]
[1753110016940,0.002,3842.6,3842.5,5.73207234]
[1753110017255,0.002,3842.6,3842.5,7.56233229]
[1753110020894,0.002,3842.6,3842.5,7.69546099]
[1753110022702,0.002,3842.6,3842.5,8.24546099]
[1753110023157,0.002,3842.6,3842.5,7.69546099]
[1753110023355,0.002,3842.6,3842.5,7.10140104]
[1753110024061,0.002,3842.6,3842.5,10.00920104]
[1753110024263,0.002,3842.6,3842.5,5.86520104]
[1753110024463,0.002,3842.6,3842.5,6.32962576]
[1753110024964,0.002,3842.6,3842.5,7.09922576]
[1753110025265,0.002,3842.6,3842.5,8.45778157]
[1753110027179,0.002,3842.6,3842.5,6.63480104]
[1753110027368,0.002,3842.6,3842.5,7.07320104]
[1753110027705,0.002,3842.6,3842.5,6.94007234]
[1753110029073,0.002,3842.6,3842.5,4.2726]
[1753110029309,0.002,3842.6,3842.5,6.87507234]
[1753110029773,0.002,3842.6,3842.5,9.87507234]
[1753110030680,0.002,3842.6,3842.5,7.2726]
[1753110030893,0.002,3842.6,3842.5,9.87507234]
[1753110031294,0.002,3842.6,3842.5,10.31347234]
[1753110031507,0.002,3842.6,3842.5,11.87807604]
[1753110032888,0.002,3842.6,3842.5,12.67397604]
[1753110034399,0.002,3842.6,3842.5,13.22397604]
[1753110035820,1e-08,3842.6,3842.5,13.22397604]
[1753110038030,1e-08,3842.6,3842.5,12.67397604]
[1753110040312,1e-08,3842.6,3842.5,7.29667604]
[1753110040500,1e-08,3842.6,3842.5,0.1296]
[1753110040718,1e-08,3842.6,3842.5,6.87307234]
[1753110041037,1e-08,3842.6,3842.5,3.1296]
[1753110041340,1e-08,3842.6,3842.5,5.73207234]
[1753110042424,1e-08,3842.6,3842.5,3.1296]
[1753110042745,1e-08,3842.6,3842.2,0.12741466]
[1753110042746,0.7669,3842.5,3842.2,0.12741466]
[1753110042944,0.7669,3842.3,3842.2,0.12741466]
[1753110043123,0.1296,3842.2,3841.9,0.001]
[1753110043299,0.1296,3842.0,3841.9,0.001]
[1753110043502,0.7669,3842.3,3841.9,0.001]
[1753110043837,0.1296,3842.2,3841.9,0.001]
[1753110044038,0.4424,3842.2,3841.9,0.001]
[1753110044246,0.1296,3842.0,3841.9,0.001]
[1753110044616,0.572,3842.0,3841.9,0.001]
[1753110044959,4.08850103,3842.0,3841.9,0.001]
[1753110045301,4.63850103,3842.0,3841.9,0.001]
[1753110045837,2.60335311,3841.2,3840.4,0.001]
[1753110046135,0.5082,3841.2,3840.4,0.001]
[1753110046347,1.93256605,3841.2,3840.4,0.001]
[1753110046638,4.53591916,3841.2,3840.4,0.001]
[1753110047814,1.93256605,3841.2,3840.4,0.001]
[1753110048417,4.53591916,3841.2,3840.4,0.001]
[1753110048645,1.93256605,3841.2,3840.4,0.001]
[1753110048800,5.0881,3841.2,3840.4,0.001]
[1753110049001,7.69145311,3841.2,3840.4,0.001]
[1753110049239,5.0881,3841.2,3840.4,0.001]
[1753110049444,7.69145311,3841.2,3840.4,0.001]
[1753110049818,5.0881,3841.2,3840.4,0.001]
[1753110050034,5.8572387,3841.2,3840.4,0.001]
[1753110050250,5.4173387,3841.2,3840.4,0.001]
[1753110050547,5.8562387,3841.2,3840.4,0.001]
[1753110050849,8.45959181,3841.2,3840.4,0.001]
[1753110051148,2.60382762,3840.5,3840.4,1e-08]
[1753110051415,7.51341038,3840.5,3840.4,1e-08]
[1753110051567,10.95231038,3840.5,3840.4,1e-08]
[1753110053575,6.81131038,3840.5,3840.4,1e-08]
[1753110053723,10.95231038,3840.5,3840.4,1e-08]
[1753110054323,11.50231038,3840.5,3840.4,1e-08]
[1753110056831,26.00231038,3840.5,3840.4,1e-08]
[1753110057369,36.38289953,3840.5,3840.4,1e-08]
[1753110057740,36.38389953,3840.5,3840.4,1e-08]
[1753110058652,3.96629542,3840.4,3840.3,0.001]
[1753110058830,6.3254491,3840.4,3840.3,0.001]
[1753110059183,5.8865491,3840.4,3840.3,0.001]
[1753110059334,9.4775491,3840.4,3840.3,0.001]
[1753110059952,9.9164491,3840.4,3840.3,0.001]
[1753110060186,3.17155368,3840.4,3840.3,0.001]
[1753110060372,3.98957447,3840.6,3840.3,0.001]
[1753110060571,2.60382762,3840.5,3840.3,0.001]
[1753110060737,1.38580784,3840.6,3840.3,0.001]
[1753110060942,1.38580784,3840.6,3840.4,0.4357]
[1753110061153,0.1296,3840.5,3840.4,0.4357]
[1753110061358,4.2706,3840.5,3840.4,0.4357]
[1753110062140,4.2706,3840.5,3840.3,0.001]
[1753110062380,0.1296,3840.5,3840.3,0.001]
[1753110062585,0.1296,3840.5,3840.4,1.267]
[1753110062740,1.38580784,3840.6,3840.4,1.91669523]
[1753110062933,1.38580784,3840.6,3840.4,1.267]
[1753110063134,1.38580784,3840.6,3840.5,0.4357]
[1753110063349,1.38580784,3840.6,3840.3,0.001]
[1753110063549,2.60389542,3840.4,3840.3,0.001]
[1753110064971,0.8248,3841.5,3840.4,0.8118]
[1753110065172,0.1296,3840.9,3840.4,0.8118]
[1753110065470,0.1296,3840.4,3840.3,0.001]
[1753110065673,1.2637,3841.5,3840.4,2.60388937]
[1753110065674,4.14,3840.7,3840.4,2.60388937]
[1753110065981,0.1296,3840.7,3840.5,3.03948489]
[1753110066173,0.1296,3840.7,3840.6,0.7755]
[1753110066374,0.1296,3840.7,3840.6,3.81495982]
[1753110066575,0.7774,3841.8,3840.7,2.60369203]
[1753110066894,4.14,3841.7,3841.1,2.60339358]
[1753110067092,0.1296,3841.6,3841.2,0.4357]
[1753110067272,0.1296,3841.6,3841.1,2.6033759]
[1753110067473,0.1296,3841.6,3841.3,0.4357]
[1753110067793,0.1296,3841.6,3841.0,0.1296]
[1753110067996,0.1296,3841.3,3840.9,0.4357]
[1753110068396,0.1296,3841.3,3841.0,3.03915641]
[1753110068597,0.1296,3841.3,3841.1,0.4357]
[1753110068971,0.1296,3841.3,3841.2,0.4357]
[1753110069586,0.1296,3841.3,3840.9,0.4357]
[1753110069784,0.1296,3841.3,3841.0,0.4357]
[1753110069987,0.1296,3841.3,3840.6,0.9051]
[1753110070199,0.1296,3841.3,3840.6,1.3408]
[1753110070504,0.1296,3841.3,3840.6,3.944515]
[1753110071067,0.1296,3841.3,3840.6,1.3408]
[1753110071309,2.60337618,3841.2,3840.6,1.2112]
[1753110071522,0.1296,3840.9,3840.6,1.2112]
[1753110071745,0.1296,3840.9,3840.7,0.4357]
[1753110072024,0.1296,3841.2,3840.7,0.4357]
[1753110072195,0.1296,3841.2,3840.8,2.60361576]
[1753110072392,0.1296,3841.2,3840.7,3.54554796]
[1753110072626,0.1296,3841.2,3840.9,0.4357]
[1753110072987,0.1296,3841.2,3840.6,3.814951]
[1753110073326,0.1296,3841.2,3840.6,4.2112]
[1753110073820,0.1296,3841.2,3840.6,3.81495875]
[1753110074021,2.73296633,3841.2,3840.6,1.2112]
[1753110074224,0.1296,3841.2,3840.6,1.2112]
[1753110074434,2.60362424,3840.8,3840.3,0.001]
[1753110074609,0.1296,3840.5,3840.3,0.001]
[1753110075002,0.1296,3840.5,3840.4,0.4357]
[1753110076088,0.1296,3840.5,3840.3,0.001]
[1753110076289,2.60389542,3840.4,3840.3,0.001]
[1753110076499,0.7635,3840.5,3840.3,0.001]
[1753110076705,6.74089542,3840.4,3840.3,0.001]
[1753110077234,4.137,3840.4,3840.3,0.001]
[1753110078514,0.56027273,3840.6,3840.3,0.001]
[1753110078746,0.1296,3840.4,3840.3,0.4334]
[1753110080521,0.1296,3840.4,3840.3,0.001]
[1753110080723,3.29435595,3840.4,3840.3,0.001]
[1753110080926,1.7752062,3840.4,3840.3,0.001]
[1753110081124,0.69046053,3840.4,3840.3,0.001]
[1753110081570,3.29435595,3840.4,3840.3,0.001]
[1753110082736,3.29486198,3840.4,3840.3,0.001]
[1753110084246,0.69096656,3840.4,3840.3,0.001]
[1753110084449,3.29486198,3840.4,3840.3,0.001]
[1753110084773,4.37966625,3840.4,3840.3,0.001]
[1753110085081,1.77577083,3840.4,3840.3,0.001]
[1753110085232,1.21440427,3840.4,3840.3,0.001]
[1753110085438,0.1296,3840.4,3840.3,0.001]
[1753110085639,3.29493046,3840.4,3840.3,0.001]
[1753110086080,0.69103504,3840.4,3840.3,0.001]
[1753110086380,4.2656,3840.4,3840.3,0.001]
[1753110086680,4.2656,3840.4,3840.3,0.4334]
[1753110086859,4.2656,3840.4,3840.3,0.001]
[1753110087765,7.85774155,3840.4,3840.3,0.001]
[1753110088166,9.09364155,3840.4,3840.3,0.001]
[1753110088471,8.65254155,3840.4,3840.3,0.001]
[1753110088681,7.85774155,3840.4,3840.3,0.001]
[1753110089081,5.25384613,3840.4,3840.3,0.001]
[1753110089294,7.85774155,3840.4,3840.3,0.001]
[1753110089658,5.25384613,3840.4,3840.3,0.001]
[1753110089989,1.11784613,3840.4,3840.3,0.001]
[1753110090173,4.69136,3840.4,3840.3,0.001]
[1753110090350,4.2646,3840.4,3840.3,0.001]
[1753110090546,0.002,3840.5,3840.3,0.001]
[1753110090892,0.002,3840.5,3840.4,6.80609542]
[1753110091060,0.002,3840.5,3840.4,6.93569542]
[1753110091265,0.002,3840.5,3840.4,7.89186129]
[1753110092485,0.002,3840.5,3840.4,6.93569542]
[1753110093892,2.60389542,3840.4,3840.3,0.001]
[1753110094671,7.98089542,3840.4,3840.3,0.001]
[1753110094879,6.56014375,3840.1,3838.6,0.8136]
[1753110095195,3.42420931,3839.2,3838.3,0.4324]
[1753110095403,3.42420931,3839.2,3838.2,0.8136]
[1753110095404,7.55820931,3839.2,3838.2,0.8136]
[1753110095556,2.60470931,3839.2,3838.5,0.4324]
[1753110095761,6.73870931,3839.2,3838.5,0.4324]
[1753110095941,0.8195,3839.5,3838.5,0.4324]
[1753110096149,4.134,3840.2,3839.2,3.36958603]
[1753110096349,4.134,3840.2,3839.3,0.8145986]
[1753110096689,0.56079691,3840.3,3839.5,2.60449538]
[1753110096842,4.69479691,3840.4,3839.8,2.60424316]
[1753110097041,4.69479691,3840.4,3839.9,0.4324]
[1753110097288,4.69679691,3840.5,3840.0,0.4324]
[1753110097490,4.69679691,3840.5,3840.1,0.4324]
[1753110097703,4.136,3840.5,3840.0,0.7611]
[1753110097998,0.56279691,3840.5,3840.2,0.4324]
[1753110098151,0.002,3840.5,3840.3,0.4324]
[1753110098347,0.002,3840.5,3840.4,0.4324]
[1753110101679,0.002,3840.5,3840.4,3.03629542]
[1753110101893,0.002,3840.5,3840.4,0.4324]
[1753110103189,0.002,3840.5,3840.4,3.03629542]
[1753110103396,0.002,3840.5,3840.4,3.60293156]
[1753110103567,0.002,3840.5,3840.4,0.4324]
[1753110105092,0.002,3840.5,3840.2,0.1296]
[1753110105301,0.002,3840.5,3839.7,0.4324]
[1753110105501,2.6040971,3840.2,3839.7,0.562]
[1753110105805,0.1296,3840.3,3839.8,0.4324]
[1753110105971,0.1296,3840.3,3839.9,2.60423224]
[1753110106170,0.1296,3840.3,3840.0,0.4324]
[1753110106390,0.1296,3840.3,3839.8,2.60426496]
[1753110106708,0.1296,3840.3,3840.1,0.4601]
[1753110106876,0.1296,3840.3,3840.2,0.4601]
[1753110108706,0.002,3840.4,3840.3,0.7844]
[1753110108998,0.002,3840.4,3840.3,3.84846323]
[1753110110068,0.002,3840.4,3840.3,1.2445]
[1753110110262,0.002,3840.4,3840.3,3.84846323]
[1753110111084,0.002,3840.4,3840.3,5.24581822]
[1753110111364,0.002,3840.4,3840.3,5.37541822]
[1753110112202,0.002,3840.4,3840.3,3.38836323]
[1753110112588,0.002,3840.4,3840.3,3.84846323]
[1753110113007,0.002,3840.4,3840.3,3.87450286]
[1753110113310,0.002,3840.4,3840.3,7.00410286]
[1753110113469,0.002,3840.4,3840.3,6.97806323]
[1753110113969,0.002,3840.4,3840.3,8.34937849]
[1753110114398,0.002,3840.4,3840.3,3.914]
[1753110114597,0.002,3840.4,3838.0,10.67239648]
[1753110114598,0.002,3840.4,3840.0,4.2596]
[1753110114903,0.002,3840.4,3840.0,4.129]
[1753110115106,0.002,3840.4,3840.1,3.4601]
[1753110115268,0.002,3840.4,3840.3,2.60396323]
[1753110115471,0.002,3840.4,3840.3,4.80228249]
[1753110115695,0.002,3840.4,3840.3,5.28842212]
[1753110115895,0.002,3840.4,3840.2,5.60396846]
[1753110116282,0.002,3840.4,3840.2,3.0]
[1753110116484,0.002,3840.4,3840.1,4.129]
[1753110117015,0.002,3840.4,3840.0,3.1296]
[1753110117174,0.1296,3840.3,3840.0,9.73314959]
[1753110117522,0.1296,3840.3,3840.0,3.0]
[1753110117669,2.60594586,3840.4,3839.3,3.06467917]
[1753110117872,0.1296,3839.9,3839.3,0.5897]
[1753110118105,0.1296,3839.9,3839.4,2.6045709]
[1753110118275,0.1296,3839.9,3839.3,3.19432586]
[1753110118476,0.1296,3839.9,3839.3,0.5897]
[1753110118675,0.1296,3839.9,3839.3,0.1296]
[1753110118897,0.1296,3839.9,3839.3,3.1296]
[1753110119137,3.34591368,3839.9,3839.3,0.1296]
[1753110119271,0.1296,3839.6,3839.1,4.149]
[1753110119875,2.60435018,3839.8,3839.1,3.02]
[1753110120183,0.1296,3839.3,3839.1,0.02]
[1753110120597,0.1296,3839.3,3839.2,3.06480931]
[1753110120916,0.7829,3840.0,3839.2,3.06480931]
[1753110120917,0.1296,3839.6,3839.2,0.4601]
[1753110121129,0.4424,3839.9,3839.1,0.02]
[1753110121275,0.1296,3839.3,3839.1,0.02]
[1753110122181,0.1296,3839.3,3839.2,3.06480931]
[1753110122382,0.1296,3839.3,3839.2,0.4601]
[1753110122604,0.1296,3839.3,3839.1,0.02]
[1753110122919,0.1296,3839.3,3839.1,2.62477012]
[1753110123410,0.1296,3839.3,3839.2,2.60470931]
[1753110123812,0.1296,3839.3,3839.2,3.06480931]
[1753110123997,0.7829,3840.0,3839.2,3.06480931]
[1753110124223,0.1296,3840.0,3839.4,2.60456432]
[1753110124393,0.1296,3840.0,3839.4,2.60455216]
[1753110124786,0.1296,3840.0,3839.3,3.39002754]
[1753110125227,0.1296,3840.0,3839.4,2.60456351]
[1753110125401,0.1296,3840.0,3839.3,3.39002033]
[1753110126037,0.7673,3840.2,3839.1,0.02]
[1753110126189,0.1296,3839.3,3839.1,0.02]
[1753110126386,0.9142,3839.3,3839.1,0.02]
[1753110127020,2.60470931,3839.2,3839.1,0.02]
[1753110127352,3.04710931,3839.2,3839.1,0.02]
[1753110129050,14.76329846,3839.2,3839.1,0.02]
[1753110129210,5.58145665,3839.2,3839.1,0.02]
[1753110129415,7.95870931,3839.2,3839.1,0.02]
[1753110129827,0.1296,3839.3,3839.1,0.02]
[1753110130348,0.1296,3839.3,3839.1,0.021]
[1753110130548,2.7342871,3839.3,3839.1,0.021]
[1753110130722,2.60470931,3839.2,3839.1,0.021]
[1753110130921,3.13859893,3839.2,3839.1,0.021]
[1753110131122,0.53388962,3839.2,3839.1,0.021]
[1753110131648,0.1296,3839.3,3839.1,0.021]
[1753110131865,2.60470931,3839.2,3839.1,0.021]
[1753110132069,0.1296,3839.3,3839.1,0.021]
[1753110132357,6.8612446,3839.3,3839.1,0.021]
[1753110132560,2.60470931,3839.2,3839.1,0.021]
[1753110132772,3.73324024,3839.2,3839.1,0.021]
[1753110132958,4.54184024,3839.2,3839.1,0.021]
[1753110133626,5.09184024,3839.2,3839.1,0.021]
[1753110134222,4.54184024,3839.2,3839.1,0.021]
[1753110134742,9.21884024,3839.2,3839.1,0.021]
[1753110135492,12.21884024,3839.2,3839.1,0.021]
[1753110136123,12.21884024,3839.2,3839.1,1e-08]
[1753110137225,11.66884024,3839.2,3839.1,1e-08]
[1753110137440,8.66414024,3839.2,3839.1,1e-08]
[1753110137746,5.62173093,3839.2,3839.1,1e-08]
[1753110137944,4.127,3839.2,3839.1,1e-08]
[1753110138147,3.40046179,3839.5,3839.1,1e-08]
[1753110138350,4.126,3839.4,3839.1,0.44030001]
[1753110138547,4.126,3839.3,3839.1,0.44030001]
[1753110138841,4.126,3839.4,3839.1,0.44030001]
[1753110139036,2.60464147,3839.3,3839.1,1e-08]
[1753110139240,2.60470931,3839.2,3839.1,1e-08]
[1753110139943,3.81260931,3839.2,3839.1,1e-08]
[1753110140330,3.37390931,3839.2,3839.1,1e-08]
[1753110140528,4.126,3839.2,3839.1,1e-08]
[1753110140731,0.8157,3839.5,3839.1,1e-08]
[1753110140966,4.126,3839.4,3839.1,0.44030001]
[1753110141138,4.126,3839.4,3839.2,0.4403]
[1753110141545,2.60470931,3839.2,3839.1,1e-08]
[1753110141953,2.60465157,3839.3,3839.1,1e-08]
[1753110142233,4.126,3839.2,3839.1,1e-08]
[1753110142754,4.126,3839.3,3839.1,0.44030001]
[1753110143071,4.126,3839.3,3839.1,1e-08]
[1753110143835,4.126,3839.3,3839.1,0.44030001]
[1753110144037,4.126,3839.3,3839.1,1e-08]
[1753110144339,4.126,3839.3,3839.2,0.4403]
[1753110144536,4.126,3839.3,3839.1,1e-08]
[1753110144747,6.73064147,3839.3,3839.1,1e-08]
[1753110144952,4.126,3839.3,3839.1,1e-08]
[1753110145131,4.126,3839.3,3839.1,0.44030001]
[1753110145545,1.36407,3840.1,3839.2,0.4403]
[1753110145748,0.1296,3839.3,3839.2,3.79669766]
[1753110145946,2.60591801,3840.4,3839.2,3.79669766]
[1753110145947,0.1296,3839.9,3839.6,2.60439371]
[1753110146148,0.1296,3839.9,3839.5,2.60448176]
[1753110146343,0.1296,3839.9,3839.7,0.4403]
[1753110146828,0.1296,3839.9,3839.2,0.8813]
[1753110147085,0.1296,3839.9,3839.8,0.4403]
[1753110147680,0.1296,3839.9,3839.8,3.8023023]
[1753110147884,0.1316,3840.3,3840.0,2.60414376]
[1753110148380,0.1316,3840.3,3840.1,0.4403]
[1753110148578,0.002,3840.3,3840.2,3.04433104]
[1753110148753,0.002,3840.3,3840.2,7.52252058]
[1753110149077,0.002,3840.3,3840.2,8.04648027]
[1753110150715,0.002,3840.3,3840.2,4.3276]
[1753110151004,0.002,3840.3,3840.2,4.198]
[1753110151793,0.002,3840.3,3840.2,6.80203104]
[1753110152479,0.002,3840.3,3840.2,4.198]
[1753110152690,0.002,3840.3,3840.2,6.80203104]
[1753110153046,0.002,3840.3,3840.2,8.43781989]
[1753110153248,0.002,3840.3,3840.2,7.88781989]
[1753110153480,0.002,3840.3,3840.2,6.93163104]
[1753110153869,0.002,3840.3,3840.2,4.198]
[1753110154686,0.002,3840.3,3840.2,6.80203104]
[1753110155061,0.002,3840.3,3840.2,6.93163104]
[1753110156111,0.002,3840.3,3840.2,7.48163104]
[1753110156254,0.002,3840.3,3840.2,8.90251013]
[1753110157093,0.002,3840.3,3840.2,6.93163104]
[1753110157453,0.002,3840.3,3840.2,4.3276]
[1753110157897,0.002,3840.3,3840.2,6.93163104]
[1753110158799,0.002,3840.3,3840.2,7.05128703]
[1753110159104,0.002,3840.3,3840.2,7.60128703]
[1753110159265,0.002,3840.3,3840.2,9.03403131]
[1753110159882,1e-08,3840.4,3840.3,6.97256323]
[1753110160400,1e-08,3840.5,3840.4,6.97249542]
[1753110160617,1e-08,3840.5,3840.4,7.41279542]
[1753110160891,1e-08,3840.5,3840.4,4.11181372]
[1753110161196,1e-08,3840.5,3840.4,12.62370479]
[1753110161489,1e-08,3840.5,3840.4,12.59766584]
[1753110161789,1e-08,3840.5,3840.4,12.47824754]
[1753110161994,1e-08,3840.5,3840.4,12.59922291]
[1753110163790,1e-08,3840.5,3840.4,12.59822291]
[1753110164988,1e-08,3840.5,3840.4,22.97981206]
[1753110166408,1e-08,3840.9,3840.8,3.15362424]
[1753110166615,0.022,3841.9,3841.2,6.15335311]
[1753110166921,0.022,3841.9,3841.2,11.11048664]
[1753110167055,0.022,3841.9,3841.2,11.08445311]
[1753110167260,0.022,3841.9,3841.2,7.55375311]
[1753110167482,0.022,3841.9,3841.2,11.67275311]
[1753110167799,0.022,3841.9,3841.2,9.8107152]
[1753110168183,0.022,3841.9,3841.8,2.60294653]
[1753110168373,0.022,3841.9,3841.8,7.54174653]
[1753110168578,0.022,3841.9,3841.8,7.67134653]
[1753110168782,0.022,3841.9,3841.8,8.13004653]
[1753110168986,0.002,3842.8,3842.5,2.60247234]
[1753110169264,0.02,3842.9,3842.5,2.60247234]
[1753110169265,0.02,3842.9,3842.8,2.60226917]
[1753110169472,1e-08,3842.9,3842.8,7.72340708]
[1753110169797,0.002,3843.6,3843.3,3.35673063]
[1753110170002,0.002,3843.6,3843.3,3.38274993]
[1753110170301,0.002,3843.6,3843.3,7.93343063]
[1753110170598,0.002,3843.6,3843.3,8.65660296]
[1753110170961,0.002,3843.6,3843.3,4.53860296]
[1753110171161,0.002,3843.6,3843.3,7.62544569]
[1753110171378,0.002,3843.6,3843.3,7.59942639]
[1753110171577,0.002,3843.6,3843.3,0.12469576]
[1753110172781,2.60386293,3843.4,3843.3,0.12469576]
[1753110172981,0.26278629,3843.4,3843.3,0.12469576]
[1753110173175,14.76278629,3843.4,3843.3,0.12469576]
[1753110174285,17.36464922,3843.4,3843.3,0.12469576]
[1753110174689,18.61674922,3843.4,3843.3,0.12469576]
[1753110174899,0.8165,3842.5,3841.9,4.117]
[1753110175074,3.41870766,3842.9,3842.2,2.60265972]
[1753110175275,0.8165,3842.9,3842.1,2.60274329]
[1753110175487,2.60206682,3843.1,3842.2,4.60072675]
[1753110175682,0.8165,3843.3,3842.2,4.60072675]